bitfinex/quotes_ETHUSD_20250110
["timestamp","ask_amount","ask_price","bid_price","bid_amount"]
[1736480286011,5.3213,3251.3,3250.3,0.803]
[1736480286212,0.53213,3251.2,3250.4,0.03076143]
[1736480286374,5.3213,3251.3,3250.7,3.07618]
[1736480286574,5.3213,3251.3,3250.4,0.03076006]
[1736480286784,5.3213,3251.3,3250.5,3.07644]
[1736480286990,5.3213,3251.3,3251.1,3.07588]
[1736480287387,0.0413,3251.6,3251.3,3.07569]
[1736480287701,0.0413,3251.8,3250.9,2.30183955]
[1736480287915,5.28,3251.9,3251.6,3.0754]
[1736480288103,5.28,3251.9,3251.5,3.07548]
[1736480289224,5.28,3251.9,3251.3,3.87866]
[1736480289422,5.28,3251.9,3251.3,3.07566]
[1736480290416,5.28,3251.9,3251.4,3.07559]
[1736480291643,5.28,3251.9,3251.2,0.232]
[1736480291794,5.28,3251.9,3251.5,3.07547]
[1736480292414,5.3213,3252.1,3251.2,0.232]
[1736480292617,5.3213,3252.1,3251.2,0.6683564]
[1736480292935,3.0,3252.0,3251.4,3.07559]
[1736480295674,3.0,3252.0,3251.3,3.07567]
[1736480295833,3.0,3252.0,3251.3,3.06372913]
[1736480297071,3.0,3252.0,3251.4,3.07555]
[1736480297267,3.0,3252.0,3251.4,3.44994064]
[1736480299459,3.0,3252.0,3251.2,0.6683564]
[1736480299662,0.0413,3251.8,3250.8,3.07607]
[1736480299856,0.0413,3251.8,3250.6,3.07632]
[1736480299857,0.0413,3251.5,3250.6,3.07632]
[1736480300066,0.0413,3251.2,3250.1,3.82934]
[1736480300374,0.0413,3251.2,3250.4,3.07654]
[1736480300670,0.0413,3251.2,3250.5,3.0764]
[1736480301029,0.0413,3251.2,3250.6,3.07634]
[1736480301234,0.0413,3251.2,3250.3,2.53383955]
[1736480301456,0.0413,3251.2,3250.6,3.07631]
[1736480301664,0.0413,3251.2,3250.4,0.56105196]
[1736480301665,0.0413,3251.2,3250.7,3.07624]
[1736480301896,0.0413,3251.2,3250.8,3.07616]
[1736480304873,5.28,3251.3,3250.9,0.03075866]
[1736480305117,5.28,3251.3,3251.1,3.07584]
[1736480305412,5.28,3251.3,3251.1,3.383424]
[1736480305608,5.28,3251.3,3251.2,3.82838]
[1736480306084,5.3213,3252.0,3251.2,3.82838]
[1736480306271,5.3213,3252.0,3251.2,3.30778]
[1736480306674,5.3213,3252.0,3251.3,3.07566]
[1736480307179,5.3213,3252.0,3251.4,3.07558]
[1736480309812,5.3213,3252.0,3251.2,3.30776]
[1736480310011,5.85343,3252.0,3251.2,3.30776]
[1736480310810,5.85343,3252.0,3250.0,2.30933955]
[1736480310811,0.0413,3251.3,3250.3,3.07654]
[1736480311012,0.0413,3251.3,3250.1,0.03076331]
[1736480311212,0.0413,3251.3,3250.0,0.232]
[1736480311733,0.0413,3251.2,3250.1,0.03076331]
[1736480311940,0.0413,3251.2,3250.4,3.07651]
[1736480313298,0.0413,3251.2,3250.4,3.384161]
[1736480313733,0.0413,3251.2,3250.4,3.41492262]
[1736480313932,0.0413,3251.2,3250.5,0.7804]
[1736480314139,0.0413,3251.2,3250.7,3.07625]
[1736480314312,0.0413,3251.2,3250.6,0.03075965]
[1736480314313,0.0413,3251.2,3250.8,3.10689961]
[1736480314511,0.0413,3251.2,3250.8,3.41758957]
[1736480315136,0.0413,3251.5,3250.8,0.34144957]
[1736480315437,0.0413,3251.5,3251.0,3.07589]
[1736480317847,0.0413,3251.5,3251.1,0.03075569]
[1736480318043,0.0413,3251.5,3251.0,3.07589]
[1736480325078,0.0413,3251.5,3251.1,0.03075568]
[1736480326173,0.0413,3251.5,3251.0,3.07589]
[1736480329280,0.0413,3251.5,3251.1,3.10660567]
[1736480329457,0.0413,3251.5,3251.2,3.07577]
[1736480329653,0.0413,3251.8,3251.1,0.8154]
[1736480329853,0.0413,3251.8,3251.4,3.07551]
[1736480330548,0.0413,3251.8,3251.4,3.3861364]
[1736480332393,0.0413,3251.8,3251.5,3.07542]
[1736480332599,0.0413,3252.2,3251.8,3.07518]
[1736480332797,0.0413,3252.2,3251.6,0.83025212]
[1736480332996,0.0413,3252.2,3251.7,3.07531]
[1736480333219,0.0413,3252.2,3251.7,0.39055621]
[1736480333372,0.0413,3252.2,3251.9,3.07509]
[1736480333592,5.28,3252.3,3252.1,3.07493]
[1736480333884,5.28,3252.3,3251.6,3.90561212]
[1736480333885,0.0413,3252.5,3251.7,0.03074714]
[1736480334099,0.0413,3252.8,3252.3,3.07473]
[1736480334304,0.0413,3252.8,3252.3,0.0307443]
[1736480334871,0.0413,3252.8,3252.6,3.07445]
[1736480335077,5.28,3253.4,3252.3,0.0307443]
[1736480335286,5.28,3253.4,3252.7,3.07435]
[1736480335287,0.528,3253.3,3252.7,3.07435]
[1736480335690,0.528,3253.3,3252.8,3.07422]
[1736480336981,0.528,3253.3,3252.7,0.8157]
[1736480337573,0.528,3253.3,3252.6,3.07437]
[1736480340414,0.0413,3253.2,3252.6,3.07437]
[1736480342219,0.0413,3253.2,3252.6,0.03074067]
[1736480342386,0.0413,3253.2,3252.8,3.07425]
[1736480343401,5.28,3253.4,3253.0,3.07406]
[1736480344000,0.0413,3253.5,3253.0,0.7632]
[1736480344483,0.0413,3253.5,3253.3,3.07379]
[1736480344684,5.28,3253.7,3253.3,3.07379]
[1736480344884,5.3213,3253.7,3253.3,3.07379]
[1736480346685,5.3213,3253.7,3253.6,3.07351]
[1736480346921,5.28,3253.7,3253.6,3.07351]
[1736480347224,5.28,3253.7,3253.4,3.07366]
[1736480349225,3.0,3254.0,3253.4,3.07366]
[1736480349390,3.0,3254.0,3253.5,3.0736]
[1736480352447,3.0,3254.0,3253.3,3.07377]
[1736480353342,0.83213,3253.9,3252.9,0.232]
[1736480353522,3.0413,3253.7,3252.5,1.059]
[1736480353710,0.0413,3253.6,3252.5,1.059]
[1736480353910,0.0413,3253.6,3252.8,3.07418]
[1736480354703,0.0413,3253.6,3252.6,0.03073889]
[1736480354907,0.0413,3253.6,3252.8,3.07422]
[1736480358130,3.0,3253.5,3252.8,3.07422]
[1736480361674,3.0,3253.5,3252.9,3.07417]
[1736480361817,3.0,3253.5,3253.0,3.07408]
[1736480362935,3.0,3253.5,3252.6,0.232]
[1736480363137,3.0,3253.5,3252.8,3.07424]
[1736480363742,5.28,3253.4,3252.2,0.7593]
[1736480364056,0.0413,3253.0,3252.0,3.07502]
[1736480364261,0.0413,3252.9,3252.0,3.07502]
[1736480364416,0.0413,3252.9,3252.0,3.51277874]
[1736480364621,0.0413,3252.9,3252.1,3.0749]
[1736480366655,0.0413,3252.9,3252.2,3.07483]
[1736480367167,5.3213,3252.9,3252.2,3.07483]
[1736480368662,5.3213,3252.9,3252.1,0.03074551]
[1736480368866,5.3213,3252.9,3252.5,3.07451]
[1736480372828,5.3213,3252.9,3252.6,3.07443]
[1736480373161,0.0413,3252.9,3252.6,3.07443]
[1736480374874,0.0413,3252.7,3251.2,1.232364]
[1736480375175,0.0413,3252.7,3251.5,4.1188]
[1736480375345,0.0413,3252.7,3251.8,3.07519]
[1736480379279,0.0413,3252.6,3251.8,3.07519]
[1736480380035,5.28,3252.6,3251.8,3.07519]
[1736480380270,5.28,3252.6,3251.6,0.232]
[1736480380271,0.0413,3252.4,3251.6,0.232]
[1736480380447,0.0413,3252.3,3251.3,3.07566]
[1736480380656,2.34313955,3252.2,3251.3,3.07566]
[1736480380850,0.0413,3252.1,3251.3,3.07566]
[1736480381535,0.0413,3252.1,3251.4,3.10629241]
[1736480381774,0.0413,3252.1,3251.5,3.38611924]
[1736480382351,0.0413,3252.1,3251.5,3.07549]
[1736480382607,0.0413,3252.1,3251.2,0.232]
[1736480383788,0.0413,3252.1,3251.4,3.07558]
[1736480384990,0.0413,3252.1,3251.5,3.0755]
[1736480385203,5.3213,3252.1,3251.5,3.0755]
[1736480387681,0.0413,3252.0,3251.2,0.232]
[1736480387894,0.0413,3252.0,3251.4,3.07557]
[1736480388744,0.0413,3252.0,3251.2,0.641648]
[1736480388745,3.0,3252.0,3251.2,3.717408]
[1736480388945,0.0413,3251.9,3251.2,3.717408]
[1736480389180,0.0413,3251.9,3251.2,0.641648]
[1736480389438,0.0413,3251.9,3251.3,3.07563]
[1736480389890,0.0413,3251.9,3251.2,0.232]
[1736480390093,0.0413,3251.8,3251.0,3.07592]
[1736480391784,0.0413,3251.8,3250.8,0.232]
[1736480391974,0.0413,3251.8,3251.1,3.07587]
[1736480393278,0.0075,3251.7,3250.8,0.232]
[1736480393495,0.0413,3251.3,3250.7,3.07619]
[1736480397047,5.3213,3251.3,3250.7,3.07619]
[1736480398399,5.3213,3251.3,3250.8,3.07616]
[1736480402914,5.3213,3251.3,3250.9,3.07606]
[1736480403592,5.28,3251.3,3250.9,0.386636]
[1736480403763,5.28,3251.3,3251.1,3.07584]
[1736480407317,5.28,3251.3,3250.6,3.07628]
[1736480407517,0.0413,3251.2,3250.5,0.824]
[1736480407756,0.0413,3251.2,3250.7,3.07625]
[1736480407916,0.0413,3251.2,3250.7,3.466275]
[1736480408432,0.0413,3251.2,3250.5,0.824]
[1736480408433,3.0413,3251.2,3250.5,3.07643]
[1736480412087,3.0413,3251.2,3250.6,3.07635]
[1736480412288,0.0413,3251.2,3250.9,3.07604]
[1736480412587,5.28,3251.3,3251.0,3.383514]
[1736480413329,5.28,3251.3,3251.0,0.307604]
[1736480413532,5.28,3251.3,3251.2,3.90038]
[1736480415759,5.3213,3252.3,3251.2,3.90038]
[1736480416234,5.3213,3252.3,3251.3,0.03074962]
[1736480416434,5.3213,3252.3,3251.3,3.07569]
[1736480416654,5.3213,3252.3,3251.2,3.90038]
[1736480416655,5.3213,3252.3,3251.6,3.07534]
[1736480417885,5.3213,3252.3,3251.2,0.8246]
[1736480418057,5.3213,3252.3,3251.4,3.07559]
[1736480418250,5.3213,3252.3,3251.2,0.8246]
[1736480418450,5.3213,3252.3,3251.3,0.03075257]
[1736480418652,5.3213,3252.3,3251.5,3.07541]
[1736480419382,5.3213,3252.3,3251.5,3.382951]
[1736480422395,0.0413,3252.2,3251.2,0.8246]
[1736480422559,0.0413,3252.2,3251.3,3.07567]
[1736480423586,0.0413,3252.2,3251.4,3.10628259]
[1736480425283,0.0413,3252.2,3251.4,3.07553]
[1736480426268,0.0413,3252.2,3251.2,4.13133]
[1736480426460,0.0413,3252.2,3251.3,0.413133]
[1736480426788,0.0413,3252.2,3251.6,3.07539]
[1736480427420,0.0413,3252.2,3251.7,3.07526]
[1736480431687,0.0413,3252.2,3251.9,3.07511]
[1736480432876,0.0413,3252.2,3251.7,3.07528]
[1736480436711,3.0,3252.1,3251.2,0.231]
[1736480436910,0.0413,3252.0,3251.2,3.07574]
[1736480437485,0.0413,3252.0,3251.0,0.798]
[1736480437687,0.0413,3252.0,3251.3,3.07568]
[1736480437886,0.0413,3252.0,3251.1,0.0307567]
[1736480438789,0.0413,3252.0,3251.3,3.07561]
[1736480439512,0.0413,3252.0,3251.1,3.07586]
[1736480440813,5.30183955,3252.1,3250.8,3.07609]
[1736480440814,0.0413,3251.6,3250.8,3.07609]
[1736480441026,0.0413,3251.4,3250.6,3.07633]
[1736480443689,0.0413,3251.4,3250.7,3.07623]
[1736480444116,0.0413,3251.4,3250.8,0.03076001]
[1736480444451,0.0413,3251.4,3251.0,3.07596]
[1736480446855,0.0413,3251.4,3250.7,3.07616]
[1736480447958,0.0413,3251.4,3250.6,0.8182]
[1736480448095,0.0413,3251.4,3250.8,3.07616]
[1736480450159,0.0413,3251.4,3250.9,3.07606]
[1736480450338,0.0413,3251.4,3251.0,3.07597]
[1736480451246,5.28,3251.5,3251.0,3.07597]
[1736480451421,5.28,3251.5,3250.9,0.307606]
[1736480451758,5.28,3251.5,3251.1,3.0758]
[1736480452372,5.28,3251.5,3250.8,0.03075721]
[1736480452578,5.28,3251.5,3250.9,3.07605]
[1736480453467,5.28,3251.5,3251.0,0.0307572]
[1736480453667,5.28,3251.5,3250.7,3.07626]
[1736480453867,5.28,3251.5,3250.9,3.07602]
[1736480455131,5.28,3251.5,3250.8,0.697073]
[1736480455301,5.28,3251.5,3251.1,3.07583]
[1736480455602,5.28,3251.5,3251.2,3.07576]
[1736480456678,5.28,3251.5,3251.0,3.07597]
[1736480457066,0.0413,3251.6,3251.0,3.07597]
[1736480457264,0.0413,3251.6,3251.0,3.4532743]
[1736480458472,0.0413,3251.6,3251.0,0.3773043]
[1736480458675,0.0413,3251.6,3251.1,3.07584]
[1736480459869,0.0413,3251.6,3251.2,3.07576]
[1736480460271,0.0413,3251.6,3250.9,0.03075516]
[1736480460503,0.0413,3251.9,3251.1,0.8331]
[1736480460716,5.28,3252.0,3251.8,3.07521]
[1736480461029,5.28,3252.0,3251.9,3.07512]
[1736480461327,0.0413,3252.8,3251.8,0.390831]
[1736480461489,0.0413,3252.8,3252.2,3.07475]
[1736480461832,3.0,3252.7,3252.2,3.07475]
[1736480462111,5.3213,3252.8,3252.2,0.03074553]
[1736480462270,5.3213,3252.8,3252.4,3.07464]
[1736480462470,5.3213,3252.8,3252.2,0.03074553]
[1736480462675,0.0413,3253.1,3252.7,3.07436]
[1736480462876,5.28,3253.5,3252.9,3.07416]
[1736480463099,0.0413,3253.4,3252.7,0.8317]
[1736480463338,0.0413,3253.4,3253.0,3.07405]
[1736480463876,0.0413,3253.4,3252.7,0.8317]
[1736480464078,5.28,3253.5,3253.1,3.07396]
[1736480464776,0.52338866,3253.6,3253.2,3.07383]
[1736480465176,0.52338866,3253.6,3253.0,3.07406]
[1736480466189,0.52338866,3253.6,3252.7,3.906]
[1736480466387,0.52338866,3253.6,3253.1,3.07398]
[1736480467943,0.48208866,3253.6,3252.9,0.03073642]
[1736480468141,0.48208866,3253.6,3253.3,3.07371]
[1736480468646,0.48208866,3253.6,3253.4,3.0737]
[1736480468807,0.48208866,3253.6,3253.5,3.07361]
[1736480469343,0.48208866,3253.6,3253.1,0.7945]
[1736480469704,0.48208866,3253.6,3253.2,3.07389]
[1736480469916,0.48208866,3253.6,3253.4,3.07369]
[1736480471354,0.48208866,3253.6,3253.5,3.07361]
[1736480473537,0.48208866,3253.6,3253.2,0.386839]
[1736480473858,0.48208866,3253.6,3252.7,3.0]
[1736480473859,0.52338866,3253.6,3252.7,0.7945]
[1736480474056,0.52338866,3253.6,3252.7,1.0255]
[1736480474764,0.52338866,3253.6,3252.9,3.07416]
[1736480477496,0.52338866,3253.6,3253.0,3.07402]
[1736480477986,3.52338866,3253.6,3252.7,1.0255]
[1736480478164,0.48208866,3253.6,3252.8,0.44072348]
[1736480478362,0.48208866,3253.6,3253.3,3.07379]
[1736480480463,0.48208866,3253.6,3253.0,0.8077]
[1736480480675,0.48208866,3253.6,3253.1,0.0307343]
[1736480481104,0.48208866,3253.6,3253.1,3.1047243]
[1736480481306,0.48208866,3253.6,3253.4,3.07362]
[1736480481449,0.48208866,3253.6,3253.5,0.307362]
[1736480482597,0.48208866,3253.6,3253.5,3.88131]
[1736480485513,0.48208866,3253.6,3253.5,3.91203854]
[1736480485719,0.0413,3254.8,3253.6,3.08101]
[1736480485905,0.0413,3254.8,3254.6,3.07255]
[1736480487143,0.0413,3254.8,3254.4,3.07274]
[1736480487544,0.0413,3254.8,3254.5,0.03072332]
[1736480488211,0.0413,3254.8,3254.5,3.10337332]
[1736480489055,0.0413,3254.8,3254.3,3.07282]
[1736480489220,0.0413,3254.8,3254.4,0.307282]
[1736480490051,0.0413,3255.2,3254.4,0.307282]
[1736480490459,0.0413,3255.2,3254.6,3.07255]
[1736480491720,0.0413,3255.2,3254.2,3.07294]
[1736480492063,0.0413,3255.0,3254.2,3.07294]
[1736480492722,0.0413,3254.9,3254.0,0.231]
[1736480493115,5.3213,3254.9,3254.0,0.231]
[1736480493319,0.0413,3254.8,3254.0,0.231]
[1736480494234,0.0413,3254.8,3254.0,3.30405]
[1736480495656,0.0413,3254.8,3254.2,3.07294]
[1736480496218,0.0413,3254.8,3254.0,0.26172674]
[1736480496417,0.0413,3254.8,3254.3,3.07283]
[1736480497031,0.0413,3254.8,3254.0,0.231]
[1736480497232,0.0413,3254.8,3254.1,3.07302]
[1736480497822,0.0413,3254.8,3254.2,3.07289]
[1736480500121,0.0413,3254.8,3254.5,3.07263]
[1736480502641,0.0413,3254.8,3254.2,1.105889]
[1736480502844,0.0413,3254.8,3254.3,3.07283]
[1736480504540,0.0413,3254.8,3254.4,0.03072451]
[1736480504744,0.0413,3254.8,3254.3,3.07283]
[1736480505128,0.0413,3254.8,3254.4,3.07272]
[1736480506069,0.0413,3254.7,3253.7,0.36692385]
[1736480506260,0.0413,3254.7,3253.7,3.0734]
[1736480507074,0.0413,3254.7,3253.6,0.03073132]
[1736480507246,0.0413,3254.7,3253.8,3.07332]
[1736480508474,0.0413,3254.7,3253.9,3.10396054]
[1736480508669,0.0413,3254.7,3253.9,3.41435659]
[1736480510397,0.0413,3254.7,3253.7,3.0734]
[1736480510773,0.0413,3254.7,3253.8,3.07332]
[1736480516316,0.0413,3254.6,3253.4,0.231]
[1736480516447,0.0413,3254.3,3253.4,3.30461]
[1736480517006,5.28,3254.3,3253.5,3.07361]
[1736480517207,0.0413,3254.2,3253.5,3.482641]
[1736480517552,3.0413,3254.2,3253.5,3.07361]
[1736480517885,0.0413,3253.9,3252.8,3.07427]
[1736480518087,0.0413,3253.9,3253.2,3.07389]
[1736480521067,0.0413,3253.9,3253.3,3.07379]
[1736480521395,0.0413,3253.9,3253.3,3.381169]
[1736480521602,0.0413,3253.9,3253.1,3.07397]
[1736480521907,0.0413,3253.8,3252.9,3.30517]
[1736480522104,0.0413,3253.8,3252.9,0.231]
[1736480522251,0.0413,3253.8,3253.0,3.07406]
[1736480523096,0.0413,3253.8,3253.1,3.07396]
[1736480523298,0.0413,3253.8,3253.1,3.404456]
[1736480531110,0.0413,3253.8,3252.9,3.30516]
[1736480531310,0.0413,3253.7,3252.9,3.30516]
[1736480533473,0.0413,3253.7,3252.9,3.07416]
[1736480535017,5.3213,3253.7,3252.9,3.07416]
[1736480535636,2.30183955,3253.5,3252.7,3.07434]
[1736480535838,0.0413,3253.4,3252.7,3.07434]
[1736480537393,0.0413,3253.4,3252.9,3.07416]
[1736480538537,0.0413,3253.4,3253.0,3.07408]
[1736480543688,0.0413,3253.4,3252.8,3.07426]
[1736480544521,0.0413,3253.4,3252.9,3.07417]
[1736480544719,0.0413,3253.4,3253.0,0.307417]
[1736480546113,0.0413,3253.4,3253.0,3.07406]
[1736480546849,0.0413,3253.4,3252.8,0.03073897]
[1736480547005,5.3213,3253.7,3253.4,3.07366]
[1736480547341,3.0,3254.3,3253.6,3.07351]
[1736480547539,0.0413,3254.0,3253.5,3.07361]
[1736480547753,0.0413,3254.0,3253.7,3.07337]
[1736480548537,0.0413,3254.0,3253.4,0.7715]
[1736480548750,0.0413,3254.3,3254.0,3.07313]
[1736480551308,0.0413,3254.3,3254.0,3.38351591]
[1736480552154,0.0413,3254.5,3254.0,0.31038591]
[1736480552439,0.0413,3254.5,3254.1,3.073]
[1736480553753,3.0413,3254.7,3254.2,0.03072722]
[1736480553897,3.0413,3254.7,3254.3,3.07277]
[1736480554214,5.28,3254.8,3254.4,3.07275]
[1736480554594,5.3213,3254.9,3254.1,3.07304]
[1736480554795,5.3213,3254.9,3254.2,0.64841003]
[1736480555447,5.3213,3254.9,3254.3,0.8181]
[1736480555595,5.3213,3254.9,3254.4,0.03072357]
[1736480556529,5.3213,3254.9,3254.4,3.07276]
[1736480558850,0.0413,3254.9,3254.4,3.07276]
[1736480559050,0.0413,3254.9,3254.5,0.389086]
[1736480559903,0.0413,3254.9,3254.5,3.461746]
[1736480561363,0.0413,3254.9,3253.7,0.8181]
[1736480561364,0.0413,3254.8,3253.7,0.8181]
[1736480561654,0.0413,3254.7,3253.9,0.23]
[1736480562570,2.30183955,3254.3,3253.6,3.07349]
[1736480562723,0.57561396,3254.2,3253.6,3.07349]
[1736480562907,0.0413,3254.1,3253.5,0.23]
[1736480563939,3.0,3254.1,3253.4,3.07367]
[1736480564148,0.0413,3254.0,3253.2,3.30387]
[1736480564354,0.0413,3254.0,3253.2,3.634257]
[1736480564863,0.0413,3254.0,3253.3,3.07379]
[1736480567130,0.0413,3254.0,3253.2,0.560387]
[1736480567434,0.0413,3254.0,3253.4,3.07369]
[1736480567964,3.0,3253.9,3253.4,3.07369]
[1736480574900,5.3213,3254.0,3253.3,0.8192]
[1736480575047,5.3213,3254.0,3253.8,3.07332]
[1736480575248,5.28,3254.0,3253.8,3.07332]
[1736480575782,5.28,3254.0,3253.9,3.07323]
[1736480576833,5.28,3254.0,3253.6,3.07349]
[1736480579232,5.28,3254.0,3253.3,0.8192]
[1736480579377,5.28,3254.0,3253.4,0.03073188]
[1736480579587,5.28,3254.0,3253.8,3.07329]
[1736480579897,0.0413,3254.2,3253.8,3.07329]
[1736480580595,0.0413,3254.3,3253.9,3.07314]
[1736480585128,0.0413,3254.3,3253.8,0.33805928]
[1736480585313,5.3213,3254.5,3254.2,3.07293]
[1736480585841,0.0413,3254.5,3254.2,3.07293]
[1736480586185,3.0,3254.8,3254.2,3.87903]
[1736480587199,3.0,3254.8,3254.4,3.07275]
[1736480587397,3.0,3254.8,3254.4,3.460635]
[1736480587958,3.0,3254.8,3254.5,3.07265]
[1736480588116,5.3213,3254.9,3254.5,3.07265]
[1736480588628,5.3213,3254.9,3254.4,0.387885]
[1736480588799,5.3213,3254.9,3254.3,3.07283]
[1736480590337,5.3213,3254.9,3254.4,3.07275]
[1736480590633,5.3213,3254.9,3254.5,3.07262]
[1736480592833,5.3213,3254.9,3254.3,3.07284]
[1736480594842,0.0413,3254.8,3254.0,0.23]
[1736480595135,0.57343,3254.8,3254.0,0.23]
[1736480595655,0.57343,3254.8,3254.1,3.07295]
[1736480596015,0.0413,3254.7,3254.1,3.07295]
[1736480597857,5.3213,3254.7,3254.1,3.07295]
[1736480599331,5.3213,3254.7,3254.2,3.07286]
[1736480599661,5.3213,3254.7,3254.1,0.34109508]
[1736480599867,5.3213,3254.7,3254.3,3.07284]
[1736480601471,5.28,3254.7,3254.3,3.88496555]
[1736480601922,5.28,3254.7,3254.3,3.07284]
[1736480603967,0.0413,3254.9,3254.3,3.07284]
[1736480605370,0.0413,3254.9,3254.1,3.07303]
[1736480605670,0.0413,3254.7,3254.1,3.07303]
[1736480606524,0.0413,3254.7,3253.8,1.003]
[1736480606774,0.0413,3254.7,3254.2,3.07295]
[1736480611075,0.0413,3254.7,3253.8,1.003]
[1736480611276,0.0413,3254.7,3254.2,3.07289]
[1736480611582,0.87343,3254.7,3254.2,3.07289]
[1736480613044,0.87343,3254.7,3253.8,1.003]
[1736480613251,0.87343,3254.7,3254.0,3.07312]
[1736480613669,0.87343,3254.7,3253.8,1.003]
[1736480613873,0.0413,3254.7,3254.1,3.07303]
[1736480615503,0.0413,3254.7,3254.0,3.07309]
[1736480619971,7.58183955,3254.9,3253.0,0.7854]
[1736480619972,3.07304,3254.1,3253.0,0.7854]
[1736480620303,2.30183955,3253.6,3252.8,0.7854]
[1736480620486,0.0413,3253.5,3252.6,3.07438]
[1736480620810,0.0413,3253.5,3251.9,11.04183955]
[1736480620811,3.0413,3253.2,3252.4,3.07464]
[1736480621173,3.0413,3253.2,3252.5,0.32168056]
[1736480622907,3.0413,3253.2,3252.5,3.42697301]
[1736480623308,3.0413,3253.2,3252.5,3.39623056]
[1736480625741,0.0413,3253.1,3252.2,0.7854]
[1736480626046,0.0413,3253.1,3252.4,3.07464]
[1736480627043,0.0413,3253.1,3252.1,0.23]
[1736480627239,0.0413,3253.1,3252.2,3.07482]
[1736480627795,0.0413,3253.1,3252.3,3.07474]
[1736480628037,0.0413,3253.1,3252.3,3.40828852]
[1736480628638,0.0413,3253.1,3252.3,0.33354852]
[1736480628846,0.0413,3253.1,3252.4,3.07462]
[1736480630002,0.0413,3253.1,3252.5,3.07454]
[1736480632028,0.0413,3253.1,3252.3,3.07472]
[1736480632750,0.0413,3253.1,3252.1,3.30491]
[1736480633106,0.0413,3253.1,3252.1,3.07491]
[1736480633307,0.0413,3253.1,3252.1,3.760941]
[1736480633709,0.0413,3253.1,3251.9,3.0]
[1736480633710,0.0413,3252.6,3251.9,0.23]
[1736480634012,5.3213,3252.6,3251.8,3.465981]
[1736480634256,5.3213,3252.6,3252.0,3.07497]
[1736480634621,5.3213,3252.6,3252.1,3.07493]
[1736480637516,5.3213,3252.6,3252.3,3.07466]
[1736480637714,5.28,3252.6,3252.3,3.3852006]
[1736480639130,5.28,3252.6,3252.3,0.3105406]
[1736480639356,5.28,3252.6,3252.1,3.07492]
[1736480639668,0.0413,3252.5,3251.9,3.0751]
[1736480640765,0.0413,3252.5,3251.8,0.42157605]
[1736480640999,0.0413,3252.5,3252.1,3.0749]
[1736480641788,0.0413,3252.5,3252.0,0.7608]
[1736480641931,0.0413,3252.5,3252.2,3.07484]
[1736480642939,0.0413,3252.5,3252.2,3.46147871]
[1736480643465,0.0413,3252.5,3251.8,0.390831]
[1736480643675,0.0413,3252.5,3252.1,3.07489]
[1736480644775,0.0413,3252.5,3252.2,3.07482]
[1736480644932,0.0413,3252.5,3252.2,3.07476]
[1736480648782,0.0413,3252.5,3252.0,3.075]
[1736480649402,0.0413,3252.5,3252.1,3.07492]
[1736480661819,0.0413,3252.5,3251.9,3.07512]
[1736480662024,3.0413,3252.2,3251.2,0.23]
[1736480662241,0.0413,3252.2,3251.2,0.23]
[1736480662906,0.0413,3252.2,3251.3,3.07569]
[1736480665616,0.0413,3252.2,3251.4,3.07559]
[1736480665763,0.0413,3252.1,3251.4,3.07559]
[1736480666581,5.28,3252.1,3251.4,3.07559]
[1736480666789,0.0413,3252.0,3251.4,3.07559]
[1736480667089,0.0413,3251.8,3251.0,3.07591]
[1736480667290,0.0413,3251.7,3250.9,0.23]
[1736480667497,0.0413,3251.7,3251.1,3.07579]
[1736480667698,0.0413,3251.6,3251.1,3.07579]
[1736480669808,0.0413,3251.6,3250.8,3.07607]
[1736480669992,0.0413,3251.6,3250.9,3.07606]
[1736480671324,0.0413,3251.6,3250.6,3.07627]
[1736480671482,5.28,3251.9,3250.3,3.07659]
[1736480671483,5.28,3251.1,3250.3,3.07659]
[1736480671667,0.0413,3250.9,3250.1,3.0768]
[1736480672370,0.0413,3250.9,3250.3,3.07663]
[1736480672973,0.0413,3250.9,3250.1,0.03076497]
[1736480673316,0.0413,3250.9,3250.6,3.07631]
[1736480673863,0.0413,3250.9,3250.0,1.4734]
[1736480674113,0.0413,3250.9,3250.1,0.455036]
[1736480674617,0.0413,3250.9,3250.3,3.07655]
[1736480675673,0.0413,3250.9,3250.1,3.531836]
[1736480675915,0.0413,3250.9,3250.1,0.455036]
[1736480676070,0.0413,3250.9,3250.0,0.8123]
[1736480676271,0.0413,3250.9,3250.1,3.0768]
[1736480677399,0.0413,3250.7,3249.9,3.077]
[1736480677587,0.0413,3250.7,3250.0,3.07692]
[1736480677786,0.0413,3250.7,3250.1,3.07679]
[1736480678173,0.0413,3250.7,3250.2,3.07671]
[1736480680515,0.0413,3250.7,3250.2,3.384381]
[1736480680718,0.0413,3250.7,3250.3,3.07661]
[1736480681377,0.0413,3250.7,3250.2,0.307671]
[1736480681686,5.3213,3250.7,3250.1,3.0768]
[1736480683273,5.3213,3250.7,3250.2,3.07669]
[1736480684319,5.3213,3250.7,3250.4,3.07651]
[1736480684481,5.3213,3250.7,3250.1,0.03076436]
[1736480684877,5.3213,3250.7,3250.2,3.07673]
[1736480685212,5.3213,3250.7,3250.3,0.31074944]
[1736480685500,5.3213,3250.7,3250.1,0.03076436]
[1736480685708,5.3213,3250.7,3250.5,3.07643]
[1736480686293,5.3213,3250.7,3250.1,0.03076436]
[1736480686481,5.3213,3250.7,3250.3,3.07662]
[1736480687679,5.3213,3250.7,3249.9,3.85867]